[Event "Live Chess"]
[Site "Chess.com"]
[Date "2023.09.16"]
[Round "-"]
[White "VitorEMS"]
[Black "Mariafernanda2805"]
[Result "0-1"]
[WhiteElo "727"]
[BlackElo "1001"]
[TimeControl "900+5"]
[EndTime "7:58:31 PDT"]
[Termination "Mariafernanda2805 venceu por desistência"]

1. e4 {[%clk 0:15:01.2]} 1... c5 {[%clk 0:15:01.6]} 2. Nf3 {[%clk 0:15:03.5]}
2... d6 {[%clk 0:15:01.9]} 3. Nc3 {[%clk 0:15:05.6]} 3... Nf6 {[%clk 0:15:03.7]}
4. Bc4 {[%clk 0:15:00.9]} 4... g6 {[%clk 0:15:04.3]} 5. d3 {[%clk 0:14:59.8]}
5... Bg7 {[%clk 0:15:06.1]} 6. O-O {[%clk 0:15:01.6]} 6... O-O {[%clk
0:15:08.3]} 7. Be3 {[%clk 0:15:02.8]} 7... Nc6 {[%clk 0:15:10]} 8. Nd5 {[%clk
0:15:02.5]} 8... Bd7 {[%clk 0:15:05.4]} 9. Nxf6+ {[%clk 0:15:02.5]} 9... Bxf6
{[%clk 0:15:08.6]} 10. c3 {[%clk 0:15:05.2]} 10... Be6 {[%clk 0:15:02.1]} 11.
Bxe6 {[%clk 0:15:03.1]} 11... fxe6 {[%clk 0:15:04.5]} 12. d4 {[%clk 0:14:49.6]}
12... cxd4 {[%clk 0:15:06.5]} 13. cxd4 {[%clk 0:14:51.5]} 13... d5 {[%clk
0:15:04.6]} 14. exd5 {[%clk 0:14:52.7]} 14... Qxd5 {[%clk 0:15:01.9]} 15. Qd2
{[%clk 0:14:35.7]} 15... Bg7 {[%clk 0:14:56.3]} 16. Rfd1 {[%clk 0:14:36.3]}
16... Rad8 {[%clk 0:14:52.7]} 17. Ne5 {[%clk 0:14:35.8]} 17... Bxe5 {[%clk
0:14:50.3]} 18. dxe5 {[%clk 0:14:38.4]} 18... Qxe5 {[%clk 0:14:46.7]} 19. Qe2
{[%clk 0:14:36.2]} 19... b6 {[%clk 0:14:21.9]} 20. Rxd8 {[%clk 0:14:05.9]} 20...
Rxd8 {[%clk 0:14:18.3]} 21. h3 {[%clk 0:14:08.5]} 21... Nd4 {[%clk 0:14:09.8]}
22. Qd3 {[%clk 0:13:59.4]} 22... Nf3+ {[%clk 0:14:07.6]} 23. gxf3 {[%clk
0:13:56.2]} 23... Rxd3 {[%clk 0:14:10.5]} 24. Rc1 {[%clk 0:13:54.4]} 24... Kg7
{[%clk 0:14:05.7]} 25. Re1 {[%clk 0:13:51.3]} 25... Qa5 {[%clk 0:13:50.9]} 26.
Rc1 {[%clk 0:13:45.9]} 26... Qxa2 {[%clk 0:13:50.8]} 27. Rc7 {[%clk 0:13:44.9]}
27... Qa1+ {[%clk 0:13:49.8]} 28. Kg2 {[%clk 0:13:46]} 28... Qxb2 {[%clk
0:13:44]} 29. Rxe7+ {[%clk 0:13:44.2]} 29... Kf6 {[%clk 0:13:46.7]} 30. Rxh7
{[%clk 0:13:44.8]} 30... Rxe3 {[%clk 0:13:49.4]} 31. Kg3 {[%clk 0:13:45.1]}
31... Re5 {[%clk 0:13:45.4]} 32. Rh4 {[%clk 0:13:42.6]} 32... Qc1 {[%clk
0:13:44.1]} 33. Rf4+ {[%clk 0:13:43.7]} 33... Kg5 {[%clk 0:13:44]} 34. h4+
{[%clk 0:13:41.6]} 34... Kh5 {[%clk 0:13:46.2]} 35. Rg4 {[%clk 0:13:29.7]} 35...
Qg1+ {[%clk 0:13:47]} 36. Kh3 {[%clk 0:13:31.6]} 36... Qf1+ {[%clk 0:13:48.4]}
37. Kh2 {[%clk 0:13:33]} 37... Qxf2+ {[%clk 0:13:49.4]} 0-1

[Event "Live Chess"]
[Site "Chess.com"]
[Date "2023.09.16"]
[Round "-"]
[White "Sabadin21"]
[Black "Alplee"]
[Result "0-1"]
[WhiteElo "869"]
[BlackElo "1949"]
[TimeControl "900+5"]
[EndTime "8:00:29 PDT"]
[Termination "Alplee venceu por xeque-mate"]

1. e4 {[%clk 0:15:01.7]} 1... c6 {[%clk 0:15:03.8]} 2. Nc3 {[%clk 0:15:06]} 2...
d5 {[%clk 0:15:07.3]} 3. d3 {[%clk 0:15:09.8]} 3... Nf6 {[%clk 0:15:07.6]} 4.
exd5 {[%clk 0:15:12.8]} 4... Nxd5 {[%clk 0:15:10.8]} 5. Nxd5 {[%clk 0:15:16.6]}
5... cxd5 {[%clk 0:15:14.9]} 6. Be2 {[%clk 0:15:20.9]} 6... e6 {[%clk
0:15:17.7]} 7. Be3 {[%clk 0:15:25.1]} 7... Bd6 {[%clk 0:15:21.3]} 8. Nf3 {[%clk
0:15:29.2]} 8... Nc6 {[%clk 0:15:25]} 9. O-O {[%clk 0:15:33.6]} 9... O-O {[%clk
0:15:27.8]} 10. Qd2 {[%clk 0:15:37.7]} 10... e5 {[%clk 0:15:25.5]} 11. d4 {[%clk
0:15:38.3]} 11... e4 {[%clk 0:15:26.3]} 12. Ne1 {[%clk 0:15:35.7]} 12... Qc7
{[%clk 0:15:23.7]} 13. g3 {[%clk 0:15:36.4]} 13... Bh3 {[%clk 0:15:25.1]} 14. f3
{[%clk 0:15:36.7]} 14... Bxf1 {[%clk 0:15:26.9]} 15. Kxf1 {[%clk 0:15:41.3]}
15... exf3 {[%clk 0:15:31]} 16. Bxf3 {[%clk 0:15:45.7]} 16... Ne7 {[%clk
0:15:29.8]} 17. c3 {[%clk 0:15:50.1]} 17... Qd7 {[%clk 0:15:27.4]} 18. Bd1
{[%clk 0:15:51.9]} 18... Qh3+ {[%clk 0:15:30.1]} 19. Ng2 {[%clk 0:15:53.8]}
19... Qxh2 {[%clk 0:15:32]} 20. Bc2 {[%clk 0:15:58.2]} 20... Qh1+ {[%clk
0:15:33.1]} 21. Bg1 {[%clk 0:15:58.6]} 21... Bxg3 {[%clk 0:15:35.4]} 22. Qd3
{[%clk 0:16:02.1]} 22... Bd6 {[%clk 0:15:24.5]} 23. Ne1 {[%clk 0:15:51.3]} 23...
g6 {[%clk 0:15:15.5]} 24. Bb3 {[%clk 0:15:43.7]} 24... Bh2 {[%clk 0:15:18.3]}
25. Qe3 {[%clk 0:15:38.3]} 25... Bxg1 {[%clk 0:15:19.1]} 26. Qxg1 {[%clk
0:15:42.8]} 26... Qxg1+ {[%clk 0:15:22.7]} 27. Kxg1 {[%clk 0:15:46.9]} 27... a5
{[%clk 0:15:26.4]} 28. Nf3 {[%clk 0:15:46.7]} 28... f6 {[%clk 0:15:27.3]} 29.
Re1 {[%clk 0:15:46.2]} 29... Rfe8 {[%clk 0:15:27]} 30. c4 {[%clk 0:15:39.6]}
30... a4 {[%clk 0:15:29.1]} 31. Bc2 {[%clk 0:15:39.4]} 31... dxc4 {[%clk
0:15:33.2]} 32. Re6 {[%clk 0:15:33.8]} 32... Nd5 {[%clk 0:15:31.3]} 33. Rxe8+
{[%clk 0:15:36.1]} 33... Rxe8 {[%clk 0:15:33.5]} 34. Kf2 {[%clk 0:15:38.1]}
34... h5 {[%clk 0:15:34.8]} 35. Bxa4 {[%clk 0:15:30]} 35... Re7 {[%clk
0:15:35.9]} 36. b3 {[%clk 0:15:32.6]} 36... cxb3 {[%clk 0:15:38.9]} 37. Bxb3
{[%clk 0:15:37]} 37... Rd7 {[%clk 0:15:38.5]} 38. Nd2 {[%clk 0:15:38.2]} 38...
Kg7 {[%clk 0:15:42.1]} 39. Bxd5 {[%clk 0:15:40.3]} 39... Rxd5 {[%clk 0:15:45.5]}
40. Ne4 {[%clk 0:15:43.4]} 40... Rxd4 {[%clk 0:15:49.1]} 41. Ke3 {[%clk
0:15:47.1]} 41... Rxe4+ {[%clk 0:15:53.1]} 42. Kxe4 {[%clk 0:15:51.1]} 42... g5
{[%clk 0:15:57.7]} 43. Kf3 {[%clk 0:15:54.6]} 43... Kg6 {[%clk 0:16:01.3]} 44.
Kg3 {[%clk 0:15:58.6]} 44... g4 {[%clk 0:16:05.9]} 45. Kh4 {[%clk 0:16:02.1]}
45... f5 {[%clk 0:16:10.4]} 46. Kg3 {[%clk 0:16:06.3]} 46... Kg5 {[%clk
0:16:13.7]} 47. Kg2 {[%clk 0:16:10.1]} 47... f4 {[%clk 0:16:17.6]} 48. Kh2
{[%clk 0:16:13.4]} 48... f3 {[%clk 0:16:21.5]} 49. Kg1 {[%clk 0:16:15.6]} 49...
h4 {[%clk 0:16:26.4]} 50. Kf2 {[%clk 0:16:19.9]} 50... Kf4 {[%clk 0:16:29.7]}
51. Kg1 {[%clk 0:16:24.1]} 51... g3 {[%clk 0:16:33.9]} 52. Kh1 {[%clk
0:16:28.1]} 52... f2 {[%clk 0:16:38.1]} 53. Kg2 {[%clk 0:16:31.7]} 53... h3+
{[%clk 0:16:42.2]} 54. Kf1 {[%clk 0:16:31.7]} 54... Kf3 {[%clk 0:16:44.9]} 55.
a4 {[%clk 0:16:28.7]} 55... g2# {[%clk 0:16:49.8]} 0-1

[Event "Live Chess"]
[Site "Chess.com"]
[Date "2023.09.16"]
[Round "-"]
[White "PedroRossi14"]
[Black "Ruanfelipe2014"]
[Result "0-1"]
[WhiteElo "524"]
[BlackElo "1012"]
[TimeControl "900+5"]
[EndTime "8:00:55 PDT"]
[Termination "Ruanfelipe2014 venceu por desistência"]

1. e4 {[%clk 0:15:02.6]} 1... e5 {[%clk 0:15:01.5]} 2. Nf3 {[%clk 0:15:04.4]}
2... Nc6 {[%clk 0:15:01.9]} 3. d4 {[%clk 0:15:05.3]} 3... exd4 {[%clk
0:15:02.1]} 4. Nxd4 {[%clk 0:15:08.8]} 4... Bc5 {[%clk 0:15:04.4]} 5. Be3 {[%clk
0:15:11.9]} 5... Nxd4 {[%clk 0:14:52.2]} 6. Bxd4 {[%clk 0:15:14.2]} 6... Bb6
{[%clk 0:14:51.2]} 7. Bc4 {[%clk 0:15:09]} 7... Nf6 {[%clk 0:14:48.8]} 8. Nc3
{[%clk 0:15:10.9]} 8... Qe7 {[%clk 0:14:44.4]} 9. Bd3 {[%clk 0:15:06.7]} 9...
Bxd4 {[%clk 0:14:40.8]} 10. O-O {[%clk 0:15:03.2]} 10... Bxc3 {[%clk 0:14:38.3]}
11. bxc3 {[%clk 0:15:06.7]} 11... O-O {[%clk 0:14:39]} 12. Re1 {[%clk
0:15:09.4]} 12... d6 {[%clk 0:14:33.8]} 13. Qe2 {[%clk 0:15:01]} 13... Ng4
{[%clk 0:14:31]} 14. Qf3 {[%clk 0:14:59.3]} 14... Qh4 {[%clk 0:14:28.5]} 15. g3
{[%clk 0:14:49.8]} 15... Qxh2+ {[%clk 0:14:26]} 16. Kf1 {[%clk 0:14:52.8]} 16...
Qh5 {[%clk 0:14:13.8]} 17. Re3 {[%clk 0:14:41.2]} 17... Nh2+ {[%clk 0:14:09.7]}
0-1

[Event "Live Chess"]
[Site "Chess.com"]
[Date "2023.09.16"]
[Round "-"]
[White "Rafael-2021"]
[Black "isanamie12"]
[Result "1-0"]
[WhiteElo "1032"]
[BlackElo "804"]
[TimeControl "900+5"]
[EndTime "8:01:44 PDT"]
[Termination "Rafael-2021 venceu por xeque-mate"]

1. e4 {[%clk 0:14:59.3]} 1... e5 {[%clk 0:15:02.8]} 2. Nf3 {[%clk 0:15:00]} 2...
Nc6 {[%clk 0:15:05.2]} 3. Bc4 {[%clk 0:15:01.7]} 3... Bc5 {[%clk 0:15:06.3]} 4.
d3 {[%clk 0:15:05.4]} 4... Nf6 {[%clk 0:14:59.2]} 5. Nc3 {[%clk 0:15:07.1]} 5...
O-O {[%clk 0:14:58.8]} 6. h3 {[%clk 0:15:09.5]} 6... d6 {[%clk 0:14:58]} 7. Bg5
{[%clk 0:15:12.4]} 7... h6 {[%clk 0:14:59.2]} 8. Bh4 {[%clk 0:15:12.3]} 8... g5
{[%clk 0:15:01.8]} 9. Bg3 {[%clk 0:15:15]} 9... a6 {[%clk 0:14:54.8]} 10. Qd2
{[%clk 0:15:09.7]} 10... Bb4 {[%clk 0:14:55.4]} 11. O-O-O {[%clk 0:15:09.5]}
11... Bxc3 {[%clk 0:14:52.5]} 12. Qxc3 {[%clk 0:15:12.5]} 12... Nd4 {[%clk
0:14:56.4]} 13. Nxd4 {[%clk 0:15:14.2]} 13... exd4 {[%clk 0:14:58.8]} 14. Qxd4
{[%clk 0:15:18.2]} 14... b6 {[%clk 0:15:00.5]} 15. f4 {[%clk 0:15:16.7]} 15...
c5 {[%clk 0:15:04]} 16. Qc3 {[%clk 0:15:17.5]} 16... Re8 {[%clk 0:14:55.2]} 17.
fxg5 {[%clk 0:15:19.7]} 17... hxg5 {[%clk 0:14:57.5]} 18. h4 {[%clk 0:15:22.8]}
18... gxh4 {[%clk 0:14:58.2]} 19. Bxh4 {[%clk 0:15:21.3]} 19... Qd7 {[%clk
0:14:45]} 20. Bxf6 {[%clk 0:15:19.4]} 20... Qg4 {[%clk 0:14:47.2]} 21. Rh8#
{[%clk 0:15:21.8]} 1-0

[Event "Live Chess"]
[Site "Chess.com"]
[Date "2023.09.16"]
[Round "-"]
[White "guilhermemazza"]
[Black "asafefausto"]
[Result "1/2-1/2"]
[WhiteElo "439"]
[BlackElo "526"]
[TimeControl "900+5"]
[EndTime "8:02:11 PDT"]
[Termination "Partida empatada por acordo"]

1. e4 {[%clk 0:15:02.2]} 1... e5 {[%clk 0:15:00.4]} 2. c4 {[%clk 0:14:45.7]}
2... c6 {[%clk 0:14:58.4]} 3. d3 {[%clk 0:14:47.8]} 3... d5 {[%clk 0:15:01.2]}
4. b4 {[%clk 0:14:50.8]} 4... dxc4 {[%clk 0:14:53.2]} 5. a3 {[%clk 0:14:51.7]}
5... cxd3 {[%clk 0:14:42.5]} 6. Bxd3 {[%clk 0:14:53.7]} 6... Nf6 {[%clk
0:14:27.3]} 7. Nc3 {[%clk 0:14:51.8]} 7... Bg4 {[%clk 0:14:24.1]} 8. f3 {[%clk
0:14:54.3]} 8... c5 {[%clk 0:13:59.7]} 9. bxc5 {[%clk 0:14:52.7]} 9... Be6
{[%clk 0:13:54.6]} 10. Bb5+ {[%clk 0:14:49.2]} 10... Bd7 {[%clk 0:13:55.6]} 11.
Bxd7+ {[%clk 0:14:50.4]} 11... Qxd7 {[%clk 0:13:54.9]} 12. Qxd7+ {[%clk
0:14:53.5]} 12... Nbxd7 {[%clk 0:13:52.7]} 13. Rb1 {[%clk 0:14:52.6]} 13...
O-O-O {[%clk 0:13:54.9]} 14. Nge2 {[%clk 0:14:53.4]} 14... Nxc5 {[%clk
0:13:56.8]} 15. O-O {[%clk 0:14:56.6]} 15... Bd6 {[%clk 0:13:56]} 16. Rd1 {[%clk
0:14:59.6]} 16... Rhe8 {[%clk 0:13:54.4]} 17. Nb5 {[%clk 0:14:58.4]} 17... Re6
{[%clk 0:13:31.7]} 18. Rxd6 {[%clk 0:15:01.7]} 18... Rexd6 {[%clk 0:13:33]} 19.
Nxd6+ {[%clk 0:15:04.7]} 19... Rxd6 {[%clk 0:13:36.6]} 20. Be3 {[%clk
0:15:04.8]} 20... Nd3 {[%clk 0:13:23.1]} 21. Bc5 {[%clk 0:15:04.7]} 21... Nxc5
{[%clk 0:13:17.4]} 22. Rc1 {[%clk 0:14:58.4]} 1/2-1/2

[Event "Live Chess"]
[Site "Chess.com"]
[Date "2023.09.16"]
[Round "-"]
[White "Highlanderson"]
[Black "RyanDiniz2011"]
[Result "1/2-1/2"]
[WhiteElo "1491"]
[BlackElo "1563"]
[TimeControl "900+5"]
[EndTime "8:02:11 PDT"]
[Termination "Partida empatada por acordo"]

1. e4 {[%clk 0:14:57.4]} 1... e6 {[%clk 0:15:03.9]} 2. d4 {[%clk 0:14:55]} 2...
d5 {[%clk 0:15:07.7]} 3. exd5 {[%clk 0:14:58.3]} 3... exd5 {[%clk 0:15:10.9]} 4.
Bd3 {[%clk 0:15:03]} 4... Be6 {[%clk 0:15:14.4]} 5. c3 {[%clk 0:15:06.2]} 5...
Nf6 {[%clk 0:15:17.4]} 6. h3 {[%clk 0:15:04]} 6... Bd6 {[%clk 0:15:21.4]} 7. Nf3
{[%clk 0:15:07.4]} 7... Nc6 {[%clk 0:15:25.2]} 8. O-O {[%clk 0:15:03.7]} 8...
O-O {[%clk 0:15:29.2]} 9. Bg5 {[%clk 0:14:53.9]} 9... h6 {[%clk 0:15:30.6]} 10.
Bh4 {[%clk 0:14:56.9]} 10... Be7 {[%clk 0:15:31.8]} 11. Bb5 {[%clk 0:14:50.8]}
11... Qd7 {[%clk 0:15:33.5]} 12. Ne5 {[%clk 0:14:51.7]} 12... Qd6 {[%clk
0:15:31.7]} 13. Bg3 {[%clk 0:14:40]} 13... Qd8 {[%clk 0:15:26.7]} 14. Bxc6
{[%clk 0:14:11.5]} 14... bxc6 {[%clk 0:15:28.9]} 15. Nxc6 {[%clk 0:14:15.3]}
15... Qd7 {[%clk 0:15:33.3]} 16. Nxe7+ {[%clk 0:14:15.3]} 16... Qxe7 {[%clk
0:15:37.8]} 17. Na3 {[%clk 0:14:10.1]} 17... Rfe8 {[%clk 0:15:41]} 18. Nb5
{[%clk 0:14:12.5]} 18... Rec8 {[%clk 0:15:31.2]} 19. Re1 {[%clk 0:13:57]} 19...
Qd7 {[%clk 0:15:32.1]} 20. Qb3 {[%clk 0:13:44.2]} 20... Rab8 {[%clk 0:15:31.2]}
21. a4 {[%clk 0:13:38.4]} 21... a6 {[%clk 0:15:35.2]} 1/2-1/2

[Event "Live Chess"]
[Site "Chess.com"]
[Date "2023.09.16"]
[Round "-"]
[White "AnaHelenaAulicino"]
[Black "CauaLopes12"]
[Result "0-1"]
[WhiteElo "632"]
[BlackElo "1333"]
[TimeControl "900+5"]
[EndTime "8:02:54 PDT"]
[Termination "CauaLopes12 venceu por desistência"]

1. e4 {[%clk 0:15:03.5]} 1... e5 {[%clk 0:15:02.6]} 2. Nf3 {[%clk 0:15:06.4]}
2... Nf6 {[%clk 0:15:06.2]} 3. Nxe5 {[%clk 0:15:09.8]} 3... d6 {[%clk
0:15:10.8]} 4. Bc4 {[%clk 0:15:09.9]} 4... dxe5 {[%clk 0:15:12.7]} 5. O-O {[%clk
0:15:08.9]} 5... Nxe4 {[%clk 0:15:11]} 6. Re1 {[%clk 0:15:08.8]} 6... Nf6 {[%clk
0:15:11.7]} 7. Rxe5+ {[%clk 0:15:10]} 7... Be7 {[%clk 0:15:15.4]} 8. d4 {[%clk
0:15:07.7]} 8... O-O {[%clk 0:15:16.4]} 9. Qf3 {[%clk 0:14:56.6]} 9... Ng4
{[%clk 0:15:07.8]} 10. Qg3 {[%clk 0:14:57]} 10... Nxe5 {[%clk 0:14:57]} 11. Bh6
{[%clk 0:14:55.2]} 11... Bf6 {[%clk 0:14:59.8]} 12. dxe5 {[%clk 0:14:56.8]}
12... Bxe5 {[%clk 0:14:35.7]} 13. Qxe5 {[%clk 0:14:56.2]} 13... gxh6 {[%clk
0:14:37.8]} 14. Nd2 {[%clk 0:14:58.5]} 14... Qxd2 {[%clk 0:14:35.1]} 15. Qxc7
{[%clk 0:14:53.7]} 15... Qg5 {[%clk 0:14:28.3]} 16. Qxc8 {[%clk 0:14:47.8]}
16... Qd2 {[%clk 0:14:26.5]} 17. Qxb7 {[%clk 0:14:46.3]} 17... Qxc2 {[%clk
0:14:28.5]} 18. b3 {[%clk 0:14:47.6]} 18... Qb2 {[%clk 0:14:30.9]} 19. Re1
{[%clk 0:14:44.2]} 19... Qd2 {[%clk 0:14:33.1]} 20. Rf1 {[%clk 0:14:41.5]} 20...
Nd7 {[%clk 0:14:30.6]} 0-1